fUST/lending_fUST_20241111
["ID","MTS","AMOUNT","RATE_DAILY","PERIOD"]
[341924319,1731290630691,227.03176905,0.00020844,2]
[341924320,1731290677820,167557.39206,0.0002,2]
[341924322,1731290687411,1785.5180155,0.00020733,2]
[341924327,1731290882745,173.703325,0.00020432,2]
[341924328,1731290934503,244.50768,0.00020833,2]
[341924329,1731290939157,1169.27083333,0.00020844,2]
[341924330,1731290939189,420.714242,0.00020833,2]
[341924333,1731291024031,24900.0,0.00020598,2]
[341924382,1731291032515,-1169.27083333,0.00020846,2]
[341924384,1731291032525,-1401.1493775,0.00021183,2]
[341924386,1731291032535,-300.0,0.00021263,2]
[341924388,1731291032544,-300.0,0.00021263,2]
[341924390,1731291032553,-1748.42756564,0.00021264,2]
[341924723,1731291040357,-6612.84641821,0.00021264,2]
[341924724,1731291040367,-433.93495416,0.00021364,2]
[341924725,1731291040376,-433.93495414,0.00021481,2]
[341924726,1731291040387,-8361.27398385,0.00021494,2]
[341924727,1731291040397,-433.93495414,0.00021598,2]
[341924728,1731291040406,-2942.63511057,0.00021818,2]
[341924729,1731291040415,-8361.27398385,0.00021862,2]
[341924730,1731291040424,-2627.0,0.000219,2]
[341924731,1731291040433,-169.569647,0.00021918,2]
[341924732,1731291040443,-8361.27398385,0.00022078,2]
[341924733,1731291040451,-439.41353766,0.00022078,2]
[341924734,1731291040461,-701.844185,0.00022302,2]
[341924735,1731291040470,-852.27642119,0.00022366,2]
[341924736,1731291040482,-7508.99756266,0.00022366,2]
[341924737,1731291040491,-631.0,0.0002244,2]
[341924738,1731291040500,-8361.27398385,0.0002257,2]
[341924739,1731291040509,-179.5794728,0.00022905,2]
[341924740,1731291040519,-8361.27398385,0.00022948,2]
[341924741,1731291040528,-701.844185,0.00022987,2]
[341924742,1731291040540,-420.0,0.00023123,2]
[341924743,1731291040556,-2942.63511051,0.00023153,2]
[341924744,1731291040566,-8361.27398385,0.00023166,2]
[341924745,1731291040575,-231.85,0.0002321,3]
[341924746,1731291040584,-231.85,0.0002321,3]
[341924747,1731291040594,-420.0,0.00023389,2]
[341924748,1731291040605,-8361.27398385,0.00023471,2]
[341924749,1731291040615,-8361.27398385,0.00023658,2]
[341924750,1731291040624,-701.844185,0.00023672,2]
[341924751,1731291040634,-8361.27398385,0.00024071,2]
[341924752,1731291040643,-2627.0,0.0002409,4]
[341924753,1731291040652,-8361.27398385,0.0002416,2]
[341924754,1731291040661,-150.0,0.000242,2]
[341924755,1731291040670,-8361.27398385,0.00024388,2]
[341924756,1731291040680,-150.16412,0.000244,2]
[341924757,1731291040689,-169.569647,0.00024482,2]
[341924758,1731291040699,-2942.63511051,0.00024489,2]
[341924759,1731291040708,-212.20336675,0.00024557,2]
[341924760,1731291040717,-463.7,0.0002458,3]
[341924761,1731291040727,-463.7,0.0002458,3]
[341924762,1731291040736,-514.68752469,0.00024657,2]
[341924763,1731291040745,-500.0,0.00024657,2]
[341924764,1731291040755,-540.55493491,0.00024657,2]
[341924765,1731291040764,-518.21894739,0.00024657,2]
[341924766,1731291040773,-503.47297231,0.00024657,2]
[341924767,1731291040782,-396.77380311,0.00024657,2]
[341924768,1731291040792,-504.50141891,0.00024657,2]
[341924769,1731291040801,-517.90175474,0.00024657,2]
[341924770,1731291040811,-533.4014872,0.00024657,2]
[341924771,1731291040820,-508.5779412,0.00024657,2]
[341924772,1731291040829,-500.0,0.00024657,2]
[341924773,1731291040839,-503.29433797,0.00024657,2]
[341924774,1731291040848,-500.0,0.00024657,2]
[341924775,1731291040858,-500.0,0.00024657,2]
[341924776,1731291040867,-500.0,0.00024657,2]
[341924777,1731291040876,-511.39603391,0.00024657,2]
[341924778,1731291040890,-500.0,0.00024657,2]
[341924779,1731291040899,-250.59797923,0.00024657,2]
[341924780,1731291040909,-500.0,0.00024657,2]
[341924781,1731291040918,-154.79619843,0.00024657,2]
[341924782,1731291040927,-500.0,0.00024657,2]
[341924783,1731291040938,-500.0,0.00024657,2]
[341924784,1731291040947,-1458.32,0.00024657,2]
[341924785,1731291040958,-503.75073779,0.00024657,2]
[341924786,1731291040970,-500.0,0.00024657,2]
[341924787,1731291040981,-523.98,0.00024657,2]
[341924788,1731291040990,-505.83565565,0.00024657,2]
[341924789,1731291041000,-506.94524371,0.00024657,2]
[341924790,1731291041010,-724.21,0.00024657,2]
[341924791,1731291041019,-579.19,0.00024657,2]
[341924792,1731291041029,-500.0,0.00024657,2]
[341924793,1731291041038,-500.0,0.00024657,2]
[341924794,1731291041048,-541.42330794,0.00024657,2]
[341924795,1731291041058,-816.67,0.00024657,2]
[341924796,1731291041068,-500.0,0.00024657,2]
[341924797,1731291041077,-1418.66,0.00024657,2]
[341924798,1731291041087,-500.0,0.00024657,2]
[341924799,1731291041096,-526.77530114,0.00024657,2]
[341924800,1731291041106,-455.70118646,0.00024657,2]
[341924801,1731291041116,-613.96602495,0.00024657,2]
[341924802,1731291041125,-509.25649232,0.00024657,2]
[341924803,1731291041136,-1189.12,0.00024657,2]
[341924804,1731291041146,-504.73003973,0.00024657,2]
[341924805,1731291041155,-512.58207247,0.00024657,2]
[341924806,1731291041164,-500.0,0.00024657,2]
[341924807,1731291041174,-523.91799501,0.00024657,2]
[341924808,1731291041183,-500.0,0.00024657,2]
[341924809,1731291041192,-500.0,0.00024657,2]
[341924810,1731291041201,-500.0,0.00024657,2]
[341924811,1731291041211,-500.0,0.00024657,2]
[341924812,1731291041221,-509.03064496,0.00024657,2]
[341924813,1731291041230,-529.61040937,0.00024657,2]
[341924814,1731291041240,-500.0,0.00024657,2]
[341924815,1731291041249,-338.90891541,0.00024657,2]
[341924816,1731291041258,-506.93953131,0.00024657,2]
[341924817,1731291041269,-500.0,0.00024657,2]
[341924818,1731291041278,-500.0,0.00024657,2]
[341924819,1731291041417,-506.27549692,0.00024657,2]
[341924820,1731291041426,-500.0,0.00024657,2]
[341924821,1731291041435,-556.7,0.00024657,2]
[341924822,1731291041444,-513.71282495,0.00024657,2]
[341924823,1731291041454,-500.0,0.00024657,2]
[341924824,1731291041463,-811.09,0.00024657,2]
[341924825,1731291041472,-508.85220928,0.00024657,2]
[341924826,1731291041482,-500.0,0.00024657,2]
[341924827,1731291041491,-602.13526394,0.00024657,2]
[341924828,1731291041500,-513.95230677,0.00024657,2]
[341924829,1731291041510,-509.81110002,0.00024657,2]
[341924830,1731291041519,-515.47809113,0.00024657,2]
[341924831,1731291041528,-501.78120706,0.00024657,2]
[341924832,1731291041537,-337.92939488,0.00024657,2]
[341924833,1731291041547,-517.76345194,0.00024657,2]
[341924834,1731291041556,-507.6038534,0.00024657,2]
[341924835,1731291041565,-500.0,0.00024657,2]
[341924836,1731291041575,-630.78,0.00024657,2]
[341924837,1731291041584,-500.0,0.00024657,2]
[341924838,1731291041594,-836.99,0.00024657,2]
[341924839,1731291041603,-508.78054141,0.00024657,2]
[341924840,1731291041612,-513.19267344,0.00024657,2]
[341924841,1731291041622,-500.0,0.00024657,2]
[341924842,1731291041631,-509.96933888,0.00024657,2]
[341924843,1731291041641,-505.2165832,0.00024657,2]
[341924844,1731291041650,-500.0,0.00024657,2]
[341924845,1731291041659,-510.64104067,0.00024657,2]
[341924846,1731291041668,-500.0,0.00024657,2]
[341924847,1731291041678,-1312.09,0.00024657,2]
[341924848,1731291041688,-500.0,0.00024657,2]
[341924849,1731291041697,-945.17,0.00024657,2]
[341924850,1731291041707,-500.0,0.00024657,2]
[341924851,1731291041716,-2777.64,0.00024657,2]
[341924852,1731291041725,-506.19480091,0.00024657,2]
[341924853,1731291041734,-311.58449422,0.00024657,2]
[341924854,1731291041747,-188.41550578,0.00024657,2]
[341924855,1731291041756,-500.0,0.00024657,2]
[341924856,1731291041766,-513.62302211,0.00024657,2]
[341924857,1731291041775,-500.0,0.00024657,2]
[341924858,1731291041784,-516.84314416,0.00024657,2]
[341924859,1731291041794,-605.28,0.00024657,2]
[341924860,1731291041803,-513.24128793,0.00024657,2]
[341924861,1731291041812,-433.12109196,0.00024657,2]
[341924862,1731291041821,-500.0,0.00024657,2]
[341924863,1731291041831,-500.0,0.00024657,2]
[341924864,1731291041840,-500.0,0.00024657,2]
[341924865,1731291041849,-500.0,0.00024657,2]
[341924866,1731291041859,-500.0,0.00024657,2]
[341924867,1731291041868,-500.0,0.00024657,2]
[341924868,1731291041878,-1197.28,0.00024657,2]
[341924869,1731291041893,-510.01294489,0.00024657,2]
[341924870,1731291041902,-516.99890916,0.00024657,2]
[341924871,1731291041911,-500.0,0.00024657,2]
[341924872,1731291041920,-510.8514238,0.00024657,2]
[341924873,1731291041930,-500.0,0.00024657,2]
[341924874,1731291041939,-440.14651614,0.00024657,2]
[341924875,1731291041948,-505.75119328,0.00024657,2]
[341924876,1731291041958,-503.51967498,0.00024657,2]
[341924877,1731291041968,-500.0,0.00024657,2]
[341924878,1731291041978,-935.31,0.00024657,2]
[341924879,1731291041988,-490.71089266,0.00024657,2]
[341924886,1731291044155,-9.28910734,0.00024657,2]
[341924887,1731291044165,-826.08,0.00024657,2]
[341924888,1731291044175,-2978.32665786,0.00024657,2]
[341924889,1731291044186,-312.43505782,0.00024657,2]
[341924898,1731291046335,-1584.02525124,0.00021818,2]
[341924899,1731291046346,-149.82828432,0.00024657,2]
[341924900,1731291046356,-533.8036678,0.00024657,2]
[341924901,1731291046366,-1177.34,0.00024657,2]
[341924902,1731291046376,-59.06352471,0.00024657,2]
[341924903,1731291046391,-440.93647529,0.00024657,2]
[341924904,1731291046401,-132.68964068,0.00024657,2]
[341924906,1731291211587,165.871878,0.00013973,2]
[341924907,1731291334947,464.0,0.00031256,120]
[341924911,1731291561573,1169.27083333,0.00020844,2]
[341924913,1731291873086,1169.27083333,0.00020844,2]
[341924915,1731291983469,165.793816,0.00013973,2]
[341924917,1731292048718,152.42930455,0.0003127,30]
[341924919,1731292102945,14125.06684475,0.0002,2]
[341924920,1731292112596,151.48479241,0.0003127,120]
[341924921,1731292124654,3345.13270911,0.00020377,2]
[341924922,1731292125142,4340.73301743,0.0002,2]
[341924923,1731292126340,294533.0,0.0001999,2]
[341924924,1731292126614,350.87321382,0.0002,2]
[341924928,1731292187014,342.03957734,0.00020844,2]
[341924929,1731292194862,1169.27083333,0.00020844,2]
[341924968,1731292238605,-1169.27083333,0.00020844,2]
[341924969,1731292238615,-167.66251667,0.00021,2]
[341924970,1731292238630,-93.67103545,0.00021,2]
[341924971,1731292238640,-230.14687957,0.00021,2]
[341924972,1731292238653,-5.36636531,0.00021,2]
[341924973,1731292238662,-1201.8236287,0.00022051,2]
[341924974,1731292238671,-1279.344204,0.00022434,2]
[341924975,1731292238680,-300.0,0.000227,2]
[341924976,1731292238690,-300.0,0.000227,2]
[341924977,1731292238699,-24900.0,0.00022701,2]
[341924978,1731292238708,-1877.84827617,0.00023019,2]
[341924979,1731292238718,-8039.11260024,0.0002309,2]
[341924980,1731292238726,-170.9169333,0.00023119,2]
[341924981,1731292238746,-1279.344204,0.00023119,2]
[341924982,1731292238756,-479.95917714,0.00023119,2]
[341924983,1731292238766,-210.357121,0.0002315,2]
[341924984,1731292238776,-173.5711221,0.00023342,2]
[341924985,1731292238785,-8039.11260024,0.00023413,2]
[341924986,1731292238795,-8039.11260024,0.0002376,2]
[341924987,1731292238805,-1279.344204,0.00023804,2]
[341924988,1731292238814,-8039.11260024,0.00023964,2]
[341924989,1731292238824,-8039.11260024,0.0002415,2]
[341924990,1731292238833,-1877.8482761,0.00024183,2]
[341924991,1731292238842,-153.0,0.00024384,2]
[341924992,1731292238853,-153.0,0.00024384,2]
[341924993,1731292238863,-320.13475454,0.00024557,2]
[341924994,1731292238872,-8039.11260025,0.00024619,2]
[341924995,1731292238881,-420.0,0.0002465,2]
[341924996,1731292238890,-512.92287292,0.00024656,2]
[341924997,1731292238901,-500.0,0.00024656,2]
[341924998,1731292238910,-500.0,0.00024656,2]
[341924999,1731292238920,-500.0,0.00024656,2]
[341925000,1731292238929,-291.30277984,0.00024656,2]
[341925001,1731292238939,-500.0,0.00024656,2]
[341925002,1731292238948,-192.11376293,0.00024656,2]
[341925003,1731292238957,-500.0,0.00024656,2]
[341925004,1731292238966,-500.0,0.00024656,2]
[341925005,1731292238975,-375.74375011,0.00024656,2]
[341925006,1731292238984,-500.0,0.00024656,2]
[341925007,1731292238993,-380.16639428,0.00024656,2]
[341925008,1731292239003,-500.0,0.00024656,2]
[341925009,1731292239012,-500.0,0.00024656,2]
[341925010,1731292239022,-500.0,0.00024656,2]
[341925011,1731292239031,-500.0,0.00024656,2]
[341925012,1731292239040,-640.85823478,0.00024656,2]
[341925013,1731292239050,-501.51260386,0.00024657,2]
[341925014,1731292239059,-508.37722269,0.00024657,2]
[341925015,1731292239069,-522.3299052,0.00024657,2]
[341925016,1731292239078,-637.22874622,0.00024657,2]
[341925017,1731292239087,-510.01266567,0.00024657,2]
[341925018,1731292239097,-503.49219189,0.00024657,2]
[341925019,1731292239106,-504.60213474,0.00024657,2]
[341925020,1731292239116,-519.03571104,0.00024657,2]
[341925021,1731292239124,-500.0,0.00024657,2]
[341925022,1731292239134,-507.08307401,0.00024657,2]
[341925023,1731292239143,-505.31448828,0.00024657,2]
[341925024,1731292239155,-504.25896028,0.00024657,2]
[341925025,1731292239164,-491.04025294,0.00024657,2]
[341925026,1731292239173,-505.84821054,0.00024657,2]
[341925027,1731292239182,-503.93825066,0.00024657,2]
[341925028,1731292239191,-514.13884596,0.00024657,2]
[341925029,1731292239201,-431.31921329,0.00024657,2]
[341925030,1731292239210,-507.92132352,0.00024657,2]
[341925031,1731292239219,-182.66636929,0.00024657,2]
[341925032,1731292239228,-504.99038209,0.00024657,2]
[341925033,1731292239238,-504.22794105,0.00024657,2]
[341925034,1731292239247,-566.47448417,0.00024657,2]
[341925035,1731292239256,-502.51996632,0.00024657,2]
[341925036,1731292239266,-512.3662283,0.00024657,2]
[341925037,1731292239278,-503.23053231,0.00024657,2]
[341925038,1731292239288,-436.07492153,0.00024657,2]
[341925039,1731292239297,-518.10031259,0.00024657,2]
[341925040,1731292239307,-513.37096676,0.00024657,2]
[341925041,1731292239317,-502.35877687,0.00024657,2]
[341925042,1731292239327,-507.67538859,0.00024657,2]
[341925043,1731292239336,-500.0,0.00024657,2]
[341925044,1731292239345,-529.64230441,0.00024657,2]
[341925045,1731292239356,-505.33433132,0.00024657,2]
[341925046,1731292239366,-510.55048961,0.00024657,2]
[341925047,1731292239375,-506.40089993,0.00024657,2]
[341925048,1731292239384,-200.0,0.00024657,2]
[341925049,1731292239393,-503.67033657,0.00024657,2]
[341925050,1731292239403,-506.01054641,0.00024657,2]
[341925051,1731292239412,-500.0,0.00024657,2]
[341925052,1731292239421,-503.77208168,0.00024657,2]
[341925053,1731292239431,-556.98510332,0.00024657,2]
[341925054,1731292239440,-532.76289738,0.00024657,2]
[341925055,1731292239450,-506.1290302,0.00024657,2]
[341925056,1731292239460,-509.54631731,0.00024657,2]
[341925057,1731292239469,-511.42836589,0.00024657,2]
[341925058,1731292239479,-500.0,0.00024657,2]
[341925059,1731292239488,-500.0,0.00024657,2]
[341925060,1731292239498,-508.22524209,0.00024657,2]
[341925061,1731292239507,-495.75386037,0.00024657,2]
[341925062,1731292239517,-510.2614719,0.00024657,2]
[341925063,1731292239526,-503.55948136,0.00024657,2]
[341925064,1731292239535,-508.9421735,0.00024657,2]
[341925065,1731292239545,-508.15705903,0.00024657,2]
[341925066,1731292239555,-504.94743668,0.00024657,2]
[341925067,1731292239564,-500.0,0.00024657,2]
[341925068,1731292239574,-508.52604132,0.00024657,2]
[341925069,1731292239583,-515.04549068,0.00024657,2]
[341925070,1731292239592,-501.90690518,0.00024657,2]
[341925071,1731292239602,-504.32387574,0.00024657,2]
[341925072,1731292239611,-516.45731752,0.00024657,2]
[341925073,1731292239621,-503.0490376,0.00024657,2]
[341925074,1731292239631,-500.0,0.00024657,2]
[341925075,1731292239640,-626.01992811,0.00024657,2]
[341925076,1731292239650,-502.059035,0.00024657,2]
[341925077,1731292239659,-507.04628559,0.00024657,2]
[341925078,1731292239669,-507.03557008,0.00024657,2]
[341925079,1731292239678,-526.49261476,0.00024657,2]
[341925080,1731292239688,-500.0,0.00024657,2]
[341925081,1731292239697,-505.59168539,0.00024657,2]
[341925082,1731292239707,-509.23235974,0.00024657,2]
[341925083,1731292239717,-502.6030821,0.00024657,2]
[341925084,1731292239726,-504.6050704,0.00024657,2]
[341925085,1731292239735,-512.5,0.00024657,2]
[341925086,1731292239744,-506.63346307,0.00024657,2]
[341925087,1731292239754,-544.30798068,0.00024657,2]
[341925088,1731292239763,-500.0,0.00024657,2]
[341925089,1731292239773,-505.20565018,0.00024657,2]
[341925090,1731292239782,-500.0,0.00024657,2]
[341925091,1731292239791,-511.82847194,0.00024657,2]
[341925092,1731292239801,-503.52021411,0.00024657,2]
[341925093,1731292239810,-507.16002418,0.00024657,2]
[341925094,1731292239820,-504.36752652,0.00024657,2]
[341925095,1731292239829,-509.33098713,0.00024657,2]
[341925096,1731292239839,-500.0,0.00024657,2]
[341925097,1731292239849,-500.0,0.00024657,2]
[341925098,1731292239858,-500.94875593,0.00024657,2]
[341925099,1731292239867,-500.0,0.00024657,2]
[341925100,1731292239876,-213.67258959,0.00024657,2]
[341925102,1731292239885,-500.0,0.00024657,2]
[341925104,1731292239894,-511.62998026,0.00024657,2]
[341925106,1731292239904,-636.24368084,0.00024657,2]
[341925107,1731292239913,-506.6709791,0.00024657,2]
[341925108,1731292239922,-500.0,0.00024657,2]
[341925109,1731292239931,-500.0,0.00024657,2]
[341925110,1731292239940,-509.01136506,0.00024657,2]
[341925111,1731292239949,-509.17970788,0.00024657,2]
[341925112,1731292239958,-531.72093276,0.00024657,2]
[341925113,1731292239967,-597.44646372,0.00024657,2]
[341925114,1731292239976,-500.0,0.00024657,2]
[341925115,1731292239986,-500.0,0.00024657,2]
[341925116,1731292239995,-500.0,0.00024657,2]
[341925117,1731292240004,-513.58229989,0.00024657,2]
[341925120,1731292240014,-500.0,0.00024657,2]
[341925123,1731292240024,-588.03987419,0.00024657,2]
[341925125,1731292240033,-500.0,0.00024657,2]
[341925127,1731292240042,-500.0,0.00024657,2]
[341925129,1731292240052,-500.0,0.00024657,2]
[341925131,1731292240061,-513.373138,0.00024657,2]
[341925133,1731292240070,-500.0,0.00024657,2]
[341925135,1731292240079,-514.3636021,0.00024657,2]
[341925137,1731292240089,-503.3310512,0.00024657,2]
[341925139,1731292240098,-508.37556739,0.00024657,2]
[341925140,1731292240107,-509.02989885,0.00024657,2]
[341925141,1731292240118,-506.20260116,0.00024657,2]
[341925142,1731292240127,-521.84045135,0.00024657,2]
[341925143,1731292240136,-189.29889455,0.00024657,2]
[341925144,1731292240146,-500.0,0.00024657,2]
[341925145,1731292240157,-500.0,0.00024657,2]
[341925146,1731292240166,-504.8815635,0.00024657,2]
[341925147,1731292240176,-523.0572449,0.00024657,2]
[341925148,1731292240185,-512.69792762,0.00024657,2]
[341925150,1731292240194,-528.20024945,0.00024657,2]
[341925152,1731292240204,-500.0,0.00024657,2]
[341925154,1731292240213,-500.0,0.00024657,2]
[341925156,1731292240222,-1439.22,0.00024657,2]
[341925157,1731292240231,-162.53757991,0.00024657,2]
[341925158,1731292240241,-500.0,0.00024657,2]
[341925159,1731292240250,-196.8611479,0.00024657,2]
[341925160,1731292240259,-523.54345107,0.00024657,2]
[341925161,1731292240269,-544.46,0.00024657,2]
[341925162,1731292240281,-529.0815027,0.00024657,2]
[341925163,1731292240291,-500.0,0.00024657,2]
[341925164,1731292240300,-500.0,0.00024657,2]
[341925165,1731292240309,-500.0,0.00024657,2]
[341925166,1731292240319,-518.2131886,0.00024657,2]
[341925167,1731292240329,-500.0,0.00024657,2]
[341925168,1731292240338,-694.04,0.00024657,2]
[341925169,1731292240349,-316.63472489,0.00024657,2]
[341925170,1731292240358,-510.05242406,0.00024657,2]
[341925171,1731292240367,-829.35,0.00024657,2]
[341925172,1731292240377,-500.0,0.00024657,2]
[341925173,1731292240386,-515.91795336,0.00024657,2]
[341925174,1731292240395,-500.0,0.00024657,2]
[341925175,1731292240406,-508.95261481,0.00024657,2]
[341925176,1731292240416,-1401.21,0.00024657,2]
[341925177,1731292240426,-574.38362601,0.00024657,2]
[341925178,1731292240435,-500.0,0.00024657,2]
[341925179,1731292240445,-500.0,0.00024657,2]
[341925180,1731292240454,-500.0,0.00024657,2]
[341925181,1731292240463,-508.12538464,0.00024657,2]
[341925182,1731292240472,-500.0,0.00024657,2]
[341925183,1731292240481,-503.92421999,0.00024657,2]
[341925184,1731292240490,-513.25280961,0.00024657,2]
[341925185,1731292240499,-515.53105458,0.00024657,2]
[341925186,1731292240509,-504.59893896,0.00024657,2]
[341925187,1731292240518,-505.43591195,0.00024657,2]
[341925188,1731292240528,-2336.0,0.00024657,2]
[341925189,1731292240537,-525.88788893,0.00024657,2]
[341925190,1731292240546,-506.49822151,0.00024657,2]
[341925191,1731292240556,-500.0,0.00024657,2]
[341925192,1731292240565,-1139.57,0.00024657,2]
[341925193,1731292240574,-500.0,0.00024657,2]
[341925194,1731292240584,-500.0,0.00024657,2]
[341925195,1731292240593,-175.73779485,0.00024657,2]
[341925196,1731292240602,-502.25581554,0.00024657,2]
[341925197,1731292240612,-500.0,0.00024657,2]
[341925198,1731292240621,-500.0,0.00024657,2]
[341925199,1731292240630,-505.74159285,0.00024657,2]
[341925200,1731292240639,-516.71867932,0.00024657,2]
[341925201,1731292240649,-500.0,0.00024657,2]
[341925202,1731292240662,-500.0,0.00024657,2]
[341925203,1731292240672,-500.0,0.00024657,2]
[341925204,1731292240682,-509.0878057,0.00024657,2]
[341925205,1731292240691,-631.9692643,0.00024657,2]
[341925206,1731292240700,-503.26043274,0.00024657,2]
[341925207,1731292240710,-343.10820335,0.00024657,2]
[341925208,1731292240719,-522.81086765,0.00024657,2]
[341925209,1731292240728,-500.0,0.00024657,2]
[341925210,1731292240737,-500.0,0.00024657,2]
[341925211,1731292240746,-575.17,0.00024657,2]
[341925212,1731292240755,-200.07481961,0.00024657,2]
[341925213,1731292240764,-500.0,0.00024657,2]
[341925214,1731292240773,-500.0,0.00024657,2]
[341925215,1731292240782,-557.12456786,0.00024657,2]
[341925216,1731292240791,-500.0,0.00024657,2]
[341925217,1731292240802,-503.74836657,0.00024657,2]
[341925218,1731292240811,-500.0,0.00024657,2]
[341925219,1731292240820,-500.0,0.00024657,2]
[341925220,1731292240830,-500.0,0.00024657,2]
[341925221,1731292240839,-546.33906207,0.00024657,2]
[341925222,1731292240848,-514.88586538,0.00024657,2]
[341925223,1731292240857,-511.27075595,0.00024657,2]
[341925224,1731292240866,-513.23838462,0.00024657,2]
[341925225,1731292240875,-1001.90307184,0.00024657,2]
[341925226,1731292240884,-519.90886484,0.00024657,2]
[341925227,1731292240893,-500.0,0.00024657,2]
[341925228,1731292240904,-311.99583279,0.00024657,2]
[341925229,1731292240913,-500.0,0.00024657,2]
[341925230,1731292240922,-504.87330665,0.00024657,2]
[341925231,1731292240932,-510.09668333,0.00024657,2]
[341925232,1731292240941,-506.16062144,0.00024657,2]
[341925233,1731292240950,-820.36,0.00024657,2]
[341925234,1731292240959,-606.62312572,0.00024657,2]
[341925235,1731292240968,-500.0,0.00024657,2]
[341925236,1731292240977,-506.36967163,0.00024657,2]
[341925237,1731292240986,-503.93827229,0.00024657,2]
[341925238,1731292240996,-500.0,0.00024657,2]
[341925239,1731292241006,-500.0,0.00024657,2]
[341925240,1731292241015,-500.0,0.00024657,2]
[341925241,1731292241024,-566.86726158,0.00024657,2]
[341925242,1731292241033,-500.0,0.00024657,2]
[341925243,1731292241042,-1014.00756485,0.00024657,2]
[341925244,1731292241051,-500.0,0.00024657,2]
[341925245,1731292241061,-500.0,0.00024657,2]
[341925246,1731292241070,-626.05914825,0.00024657,2]
[341925247,1731292241079,-524.95551672,0.00024657,2]
[341925248,1731292241088,-504.63058032,0.00024657,2]
[341925249,1731292241097,-512.83496511,0.00024657,2]
[341925250,1731292241106,-500.0,0.00024657,2]
[341925251,1731292241116,-500.0,0.00024657,2]
[341925252,1731292241125,-502.8581796,0.00024657,2]
[341925253,1731292241134,-500.0,0.00024657,2]
[341925254,1731292241143,-518.45654513,0.00024657,2]
[341925255,1731292241152,-510.78474314,0.00024657,2]
[341925256,1731292241161,-531.60407198,0.00024657,2]
[341925257,1731292241171,-500.0,0.00024657,2]
[341925258,1731292241180,-508.51006748,0.00024657,2]
[341925259,1731292241188,-508.50703224,0.00024657,2]
[341925260,1731292241198,-505.40830533,0.00024657,2]
[341925261,1731292241207,-500.0,0.00024657,2]
[341925262,1731292241216,-507.2385373,0.00024657,2]
[341925263,1731292241226,-500.0,0.00024657,2]
[341925264,1731292241235,-500.0,0.00024657,2]
[341925265,1731292241244,-510.09487043,0.00024657,2]
[341925266,1731292241253,-233.41327477,0.00024657,2]
[341925267,1731292241262,-408.05983189,0.00024657,2]
[341925268,1731292241271,-514.76127528,0.00024657,2]
[341925269,1731292241284,-500.0,0.00024657,2]
[341925270,1731292241294,-414.15047267,0.00024657,2]
[341925271,1731292241303,-957.94,0.00024657,2]
[341925272,1731292241312,-508.04623043,0.00024657,2]
[341925273,1731292241322,-512.01325317,0.00024657,2]
[341925274,1731292241331,-604.5,0.00024657,2]
[341925275,1731292241340,-470.76249449,0.00024657,2]
[341925276,1731292241349,-500.0,0.00024657,2]
[341925277,1731292241360,-508.11242156,0.00024657,2]
[341925278,1731292241370,-515.57482591,0.00024657,2]
[341925279,1731292241379,-1278.25,0.00024657,2]
[341925280,1731292241388,-802.12,0.00024657,2]
[341925281,1731292241398,-500.0,0.00024657,2]
[341925282,1731292241408,-513.73206,0.00024657,2]
[341925283,1731292241417,-500.0,0.00024657,2]
[341925284,1731292241427,-513.98311076,0.00024657,2]
[341925285,1731292241436,-522.40573609,0.00024657,2]
[341925286,1731292241445,-502.52039633,0.00024657,2]
[341925287,1731292241455,-926.62,0.00024657,2]
[341925288,1731292241464,-506.01623648,0.00024657,2]
[341925289,1731292241473,-519.26516274,0.00024657,2]
[341925290,1731292241482,-502.6066914,0.00024657,2]
[341925291,1731292241491,-500.0,0.00024657,2]